[Event "*** Titled Tuesday Blitz"]
[Site "Chess.com"]
[Date "2020.04.14"]
[Round "5"]
[White "MatthewG-p4p"]
[Black "elohunter1999"]
[Result "0-1"]
[WhiteElo "2741"]
[BlackElo "2484"]
[TimeControl "180+1"]
[EndTime "10:51:49 PDT"]
[Termination "elohunter1999 won by resignation"]

1. c4 {[%clk 0:03:00.9]} 1... Nf6 {[%clk 0:02:59.3]} 2. g3 {[%clk 0:03:01.1]}
2... e6 {[%clk 0:02:58.7]} 3. Nf3 {[%clk 0:02:59]} 3... d5 {[%clk 0:02:59.6]} 4.
b3 {[%clk 0:02:58.1]} 4... c5 {[%clk 0:02:55.3]} 5. Bg2 {[%clk 0:02:58]} 5...
Nc6 {[%clk 0:02:54.5]} 6. O-O {[%clk 0:02:57.9]} 6... d4 {[%clk 0:02:54.1]} 7.
e3 {[%clk 0:02:58.1]} 7... e5 {[%clk 0:02:51.9]} 8. exd4 {[%clk 0:02:58.5]} 8...
exd4 {[%clk 0:02:44.4]} 9. d3 {[%clk 0:02:55.3]} 9... Be7 {[%clk 0:02:42.7]} 10.
Bg5 {[%clk 0:02:51]} 10... O-O {[%clk 0:02:41]} 11. a3 {[%clk 0:02:48.8]} 11...
h6 {[%clk 0:02:39.7]} 12. Bxf6 {[%clk 0:02:47.2]} 12... Bxf6 {[%clk 0:02:40.6]}
13. Nbd2 {[%clk 0:02:48.1]} 13... Bf5 {[%clk 0:02:39.8]} 14. Qc2 {[%clk
0:02:33]} 14... Re8 {[%clk 0:02:39]} 15. Rfe1 {[%clk 0:02:22.5]} 15... Qd7
{[%clk 0:02:38.6]} 16. Rab1 {[%clk 0:02:14.6]} 16... a5 {[%clk 0:02:36.7]} 17.
Rxe8+ {[%clk 0:01:56.5]} 17... Rxe8 {[%clk 0:02:35.2]} 18. Ne1 {[%clk
0:01:55.9]} 18... Be7 {[%clk 0:02:10.1]} 19. Ne4 {[%clk 0:01:53]} 19... Bf8
{[%clk 0:01:57.6]} 20. f4 {[%clk 0:01:51]} 20... Bh7 {[%clk 0:01:55.6]} 21. Qd2
{[%clk 0:01:44.3]} 21... Kh8 {[%clk 0:01:48.7]} 22. Nf2 {[%clk 0:01:09.9]} 22...
Re3 {[%clk 0:01:40.9]} 23. Nc2 {[%clk 0:01:08.5]} 23... Qe8 {[%clk 0:01:40.5]}
24. Be4 {[%clk 0:00:52.7]} 24... Bxe4 {[%clk 0:01:33]} 25. dxe4 {[%clk
0:00:48.3]} 25... Rc3 {[%clk 0:01:26.6]} 26. Nd1 {[%clk 0:00:40.5]} 26... Rf3
{[%clk 0:01:22.7]} 27. Nf2 {[%clk 0:00:36.2]} 27... f5 {[%clk 0:01:14.3]} 28. e5
{[%clk 0:00:35.8]} 28... g5 {[%clk 0:01:00.6]} 29. Ne1 {[%clk 0:00:36.2]} 29...
Re3 {[%clk 0:00:59.3]} 30. Nc2 {[%clk 0:00:31.1]} 30... gxf4 {[%clk 0:00:59.2]}
31. gxf4 {[%clk 0:00:29.5]} 31... Rc3 {[%clk 0:00:53.1]} 32. Qe2 {[%clk
0:00:14.6]} 32... a4 {[%clk 0:00:38.1]} 33. bxa4 {[%clk 0:00:13.9]} 33... Na5
{[%clk 0:00:37.1]} 34. Kh1 {[%clk 0:00:12.4]} 34... Nxc4 {[%clk 0:00:34.1]} 35.
Ne1 {[%clk 0:00:10]} 35... Qc6+ {[%clk 0:00:32.9]} 36. Kg1 {[%clk 0:00:08.9]}
36... Qg6+ {[%clk 0:00:31.2]} 37. Kh1 {[%clk 0:00:06.6]} 37... Nxa3 {[%clk
0:00:30.2]} 38. Ra1 {[%clk 0:00:05.6]} 38... c4 {[%clk 0:00:25.5]} 39. e6 {[%clk
0:00:04.9]} 39... Be7 {[%clk 0:00:22.4]} 40. Qe5+ {[%clk 0:00:02.5]} 40... Qf6
{[%clk 0:00:22.5]} 41. Qd5 {[%clk 0:00:03.2]} 41... d3 {[%clk 0:00:21.1]} 42.
Nf3 {[%clk 0:00:03.7]} 42... Nc2 {[%clk 0:00:16.7]} 43. Rf1 {[%clk 0:00:04.2]}
43... Ne3 {[%clk 0:00:16.8]} 44. Qxb7 {[%clk 0:00:04]} 44... Nxf1 {[%clk
0:00:17]} 45. Qc8+ {[%clk 0:00:03.7]} 45... Qf8 {[%clk 0:00:16.8]} 46. Qc7
{[%clk 0:00:03.3]} 46... Ne3 {[%clk 0:00:16.4]} 47. h3 {[%clk 0:00:02.7]} 47...
Rc1+ {[%clk 0:00:16.5]} 48. Kh2 {[%clk 0:00:03.2]} 48... Nf1+ {[%clk 0:00:15.8]}
49. Kg2 {[%clk 0:00:03.6]} 49... Ne3+ {[%clk 0:00:16.7]} 50. Kh2 {[%clk
0:00:04.1]} 50... Nf1+ {[%clk 0:00:17]} 51. Kg2 {[%clk 0:00:03.9]} 51... Qg7+
{[%clk 0:00:17.4]} 52. Ng4 {[%clk 0:00:02.8]} 52... fxg4 {[%clk 0:00:17.5]} 53.
Qc8+ {[%clk 0:00:02.1]} 53... Kh7 {[%clk 0:00:17.8]} 0-1

[Event "*** Titled Tuesday Blitz"]
[Site "Chess.com"]
[Date "2020.04.14"]
[Round "5"]
[White "kasparicy"]
[Black "SuperCheese"]
[Result "1-0"]
[WhiteElo "2345"]
[BlackElo "2508"]
[TimeControl "180+1"]
[EndTime "10:51:49 PDT"]
[Termination "kasparicy won by resignation"]

1. e4 {[%clk 0:03:00.9]} 1... e5 {[%clk 0:02:58.9]} 2. Nf3 {[%clk 0:03:00.9]}
2... Nc6 {[%clk 0:02:59.4]} 3. Bc4 {[%clk 0:03:00.8]} 3... Bc5 {[%clk 0:03:00]}
4. O-O {[%clk 0:03:00.3]} 4... Nf6 {[%clk 0:03:00.5]} 5. d4 {[%clk 0:03:00.2]}
5... Bxd4 {[%clk 0:02:59.6]} 6. Nxd4 {[%clk 0:02:59.8]} 6... Nxd4 {[%clk
0:03:00.5]} 7. f4 {[%clk 0:02:59.1]} 7... d6 {[%clk 0:03:00.7]} 8. fxe5 {[%clk
0:02:59.2]} 8... dxe5 {[%clk 0:03:01.6]} 9. Bg5 {[%clk 0:02:59.7]} 9... Rg8
{[%clk 0:03:02.1]} 10. Nc3 {[%clk 0:01:37.2]} 10... c6 {[%clk 0:02:49.7]} 11.
Bxf6 {[%clk 0:01:29.9]} 11... gxf6 {[%clk 0:02:48.7]} 12. Qh5 {[%clk 0:01:30.8]}
12... Be6 {[%clk 0:02:32.2]} 13. Qxh7 {[%clk 0:01:17.4]} 13... Ke7 {[%clk
0:02:25.4]} 14. Bxe6 {[%clk 0:01:15.3]} 14... Nxe6 {[%clk 0:02:21.5]} 15. Rad1
{[%clk 0:01:13.1]} 15... Qb6+ {[%clk 0:02:07.7]} 16. Kh1 {[%clk 0:01:13.2]}
16... Rg7 {[%clk 0:01:15]} 17. Qf5 {[%clk 0:01:11.7]} 17... Rg6 {[%clk
0:01:15.2]} 18. Rd3 {[%clk 0:01:06.2]} 18... Rd8 {[%clk 0:01:09.3]} 19. Rxd8
{[%clk 0:00:59.9]} 19... Nxd8 {[%clk 0:01:10.2]} 20. Rd1 {[%clk 0:00:58.9]}
20... Ne6 {[%clk 0:01:10.7]} 21. b3 {[%clk 0:00:43.2]} 21... Qe3 {[%clk
0:01:09.4]} 22. Qf3 {[%clk 0:00:38.6]} 22... Qxf3 {[%clk 0:01:06.9]} 23. gxf3
{[%clk 0:00:39.5]} 23... Nd4 {[%clk 0:01:07]} 24. f4 {[%clk 0:00:26.7]} 24...
Nxc2 {[%clk 0:01:06.4]} 25. f5 {[%clk 0:00:27]} 25... Rg4 {[%clk 0:01:04]} 26.
Rg1 {[%clk 0:00:19.8]} 26... Rf4 {[%clk 0:00:54.3]} 27. Rg8 {[%clk 0:00:19.6]}
27... Ne3 {[%clk 0:00:53.9]} 28. h4 {[%clk 0:00:20]} 28... Rf1+ {[%clk
0:00:50.9]} 29. Kh2 {[%clk 0:00:19.9]} 29... Rc1 {[%clk 0:00:50.8]} 30. Na4
{[%clk 0:00:19.1]} 30... Rc2+ {[%clk 0:00:48]} 31. Kh3 {[%clk 0:00:17.8]} 31...
b5 {[%clk 0:00:41.6]} 32. h5 {[%clk 0:00:08.4]} 32... bxa4 {[%clk 0:00:40.1]}
33. h6 {[%clk 0:00:08.7]} 33... Rc1 {[%clk 0:00:23.3]} 34. Kh2 {[%clk
0:00:08.2]} 34... Rc2+ {[%clk 0:00:20.9]} 35. Kh3 {[%clk 0:00:08.4]} 35... Nf1
{[%clk 0:00:18.7]} 36. Rg2 {[%clk 0:00:07.6]} 36... Rc3+ {[%clk 0:00:17.6]} 37.
Kh4 {[%clk 0:00:06.4]} 37... Ne3 {[%clk 0:00:14.1]} 38. Rg3 {[%clk 0:00:05.7]}
38... axb3 {[%clk 0:00:03.5]} 39. axb3 {[%clk 0:00:06.6]} 39... Rc1 {[%clk
0:00:02.8]} 40. Rxe3 {[%clk 0:00:05.9]} 40... Rd1 {[%clk 0:00:02.6]} 41. h7
{[%clk 0:00:04.4]} 41... Rd8 {[%clk 0:00:03.1]} 42. Kh5 {[%clk 0:00:04.9]} 42...
Rh8 {[%clk 0:00:02.5]} 43. Kh6 {[%clk 0:00:05.8]} 43... Kd6 {[%clk 0:00:01.5]}
44. Rg3 {[%clk 0:00:05.7]} 44... Kc5 {[%clk 0:00:01.3]} 45. Rg8 {[%clk
0:00:06.1]} 45... Rxh7+ {[%clk 0:00:01.8]} 46. Kxh7 {[%clk 0:00:06.6]} 46... Kd4
{[%clk 0:00:02.7]} 47. Rf8 {[%clk 0:00:05.9]} 47... Kxe4 {[%clk 0:00:03.6]} 48.
Rxf7 {[%clk 0:00:06.8]} 48... Kxf5 {[%clk 0:00:04.2]} 49. Rxa7 {[%clk 0:00:07]}
49... e4 {[%clk 0:00:05]} 50. Rc7 {[%clk 0:00:07.7]} 50... e3 {[%clk 0:00:05.3]}
51. Rxc6 {[%clk 0:00:08.4]} 51... e2 {[%clk 0:00:05.5]} 52. Rc1 {[%clk 0:00:07]}
52... Ke4 {[%clk 0:00:06.1]} 53. b4 {[%clk 0:00:07.9]} 53... f5 {[%clk
0:00:06.9]} 54. b5 {[%clk 0:00:08.4]} 54... f4 {[%clk 0:00:07.8]} 55. b6 {[%clk
0:00:09]} 55... f3 {[%clk 0:00:08.7]} 56. b7 {[%clk 0:00:09.6]} 56... f2 {[%clk
0:00:09.6]} 57. b8=Q {[%clk 0:00:08.6]} 57... e1=Q {[%clk 0:00:10.5]} 58. Qe8+
{[%clk 0:00:07.4]} 58... Kf3 {[%clk 0:00:11]} 59. Rxe1 {[%clk 0:00:07.8]} 59...
fxe1=Q {[%clk 0:00:11.4]} 60. Qxe1 {[%clk 0:00:08.3]} 1-0

[Event "*** Titled Tuesday Blitz"]
[Site "Chess.com"]
[Date "2020.04.14"]
[Round "5"]
[White "ChesterF"]
[Black "ketster"]
[Result "1-0"]
[WhiteElo "2507"]
[BlackElo "2275"]
[TimeControl "180+1"]
[EndTime "10:51:49 PDT"]
[Termination "ChesterF won on time"]

1. d4 {[%clk 0:03:00.9]} 1... Nf6 {[%clk 0:02:53.1]} 2. c4 {[%clk 0:03:00.7]}
2... e6 {[%clk 0:02:51.1]} 3. Nc3 {[%clk 0:02:59.6]} 3... Bb4 {[%clk 0:02:49.3]}
4. Nf3 {[%clk 0:02:59.7]} 4... O-O {[%clk 0:02:45.6]} 5. Bg5 {[%clk 0:02:57.3]}
5... h6 {[%clk 0:02:37]} 6. Bh4 {[%clk 0:02:56.4]} 6... c5 {[%clk 0:02:36.7]} 7.
e3 {[%clk 0:02:52.6]} 7... Nc6 {[%clk 0:02:29.2]} 8. Be2 {[%clk 0:02:43.1]} 8...
cxd4 {[%clk 0:02:17.8]} 9. exd4 {[%clk 0:02:38.3]} 9... g5 {[%clk 0:02:10.5]}
10. Bg3 {[%clk 0:02:37.3]} 10... Ne4 {[%clk 0:02:10]} 11. Rc1 {[%clk 0:02:11]}
11... f5 {[%clk 0:01:59.5]} 12. d5 {[%clk 0:01:42.7]} 12... Ne7 {[%clk 0:01:46]}
13. Bd3 {[%clk 0:01:09.5]} 13... exd5 {[%clk 0:01:33.6]} 14. cxd5 {[%clk
0:01:07.8]} 14... d6 {[%clk 0:01:18.9]} 15. O-O {[%clk 0:01:05.4]} 15... Nxc3
{[%clk 0:01:05.3]} 16. bxc3 {[%clk 0:01:04.1]} 16... Ba3 {[%clk 0:01:04.2]} 17.
h4 {[%clk 0:00:28.7]} 17... Ng6 {[%clk 0:00:45.7]} 18. hxg5 {[%clk 0:00:24.1]}
18... hxg5 {[%clk 0:00:45.4]} 19. Rb1 {[%clk 0:00:23.8]} 19... Qf6 {[%clk
0:00:42.5]} 20. Nd4 {[%clk 0:00:23.2]} 20... f4 {[%clk 0:00:38.2]} 21. Bh2
{[%clk 0:00:22.6]} 21... Ne5 {[%clk 0:00:36.8]} 22. Bc2 {[%clk 0:00:17.2]} 22...
Bg4 {[%clk 0:00:34.1]} 23. Qd2 {[%clk 0:00:16.2]} 23... b6 {[%clk 0:00:24.9]}
24. f3 {[%clk 0:00:15.3]} 24... Bd7 {[%clk 0:00:23.7]} 25. Rfe1 {[%clk
0:00:13.6]} 25... Bc5 {[%clk 0:00:23.4]} 26. Qe2 {[%clk 0:00:05.3]} 26... Bf5
{[%clk 0:00:19.3]} 27. Bxf5 {[%clk 0:00:04.1]} 27... Qxf5 {[%clk 0:00:19.4]} 28.
Kh1 {[%clk 0:00:05]} 28... Qh7 {[%clk 0:00:18.4]} 29. Qe4 {[%clk 0:00:04.8]}
29... Qxe4 {[%clk 0:00:17]} 30. Rxe4 {[%clk 0:00:05.7]} 30... Rf6 {[%clk
0:00:13.4]} 31. Ne6 {[%clk 0:00:05.5]} 31... Rg6 {[%clk 0:00:12.5]} 32. g3
{[%clk 0:00:04.2]} 32... fxg3 {[%clk 0:00:10.7]} 33. Bxg3 {[%clk 0:00:04]} 33...
Nxf3 {[%clk 0:00:10.2]} 34. Kg2 {[%clk 0:00:03.9]} 34... g4 {[%clk 0:00:09.3]}
35. Nxc5 {[%clk 0:00:04.8]} 35... dxc5 {[%clk 0:00:06.9]} 36. d6 {[%clk
0:00:05.7]} 36... Rd8 {[%clk 0:00:04.9]} 37. Rd1 {[%clk 0:00:05.7]} 37... Rg7
{[%clk 0:00:04.9]} 38. Rf4 {[%clk 0:00:05.2]} 38... Ne5 {[%clk 0:00:02.7]} 39.
Rf5 {[%clk 0:00:04.5]} 39... Nf7 {[%clk 0:00:03.1]} 40. d7 {[%clk 0:00:03.8]}
40... Ng5 {[%clk 0:00:03.5]} 41. Rfd5 {[%clk 0:00:03.1]} 41... Ne6 {[%clk
0:00:03]} 42. Bh4 {[%clk 0:00:02.2]} 42... g3 {[%clk 0:00:01.4]} 43. Bxd8 {[%clk
0:00:01.2]} 43... Nxd8 {[%clk 0:00:02.3]} 44. Rd6 {[%clk 0:00:01.6]} 44... Re7
{[%clk 0:00:01.5]} 45. R6d5 {[%clk 0:00:02.5]} 1-0

[Event "*** Titled Tuesday Blitz"]
[Site "Chess.com"]
[Date "2020.04.14"]
[Round "5"]
[White "Carnivoras"]
[Black "ehrenfeld"]
[Result "0-1"]
[WhiteElo "2629"]
[BlackElo "2480"]
[TimeControl "180+1"]
[EndTime "10:51:50 PDT"]
[Termination "ehrenfeld won by checkmate"]

1. d4 {[%clk 0:03:00.9]} 1... f5 {[%clk 0:02:59.4]} 2. Nf3 {[%clk 0:03:01.1]}
2... Nf6 {[%clk 0:02:59.3]} 3. Bf4 {[%clk 0:03:01.1]} 3... d6 {[%clk 0:02:57.2]}
4. e3 {[%clk 0:03:00.6]} 4... g6 {[%clk 0:02:56.8]} 5. c3 {[%clk 0:02:57.9]}
5... Bg7 {[%clk 0:02:56.1]} 6. Qb3 {[%clk 0:02:57.5]} 6... e6 {[%clk 0:02:55.5]}
7. Bc4 {[%clk 0:02:56.7]} 7... Qe7 {[%clk 0:02:55.1]} 8. O-O {[%clk 0:02:47.4]}
8... Nc6 {[%clk 0:02:52.8]} 9. Nbd2 {[%clk 0:02:43.7]} 9... O-O {[%clk
0:02:46.8]} 10. Ng5 {[%clk 0:02:38.1]} 10... Nd8 {[%clk 0:02:39.3]} 11. Rfe1
{[%clk 0:01:47.7]} 11... h6 {[%clk 0:02:38.5]} 12. Ngf3 {[%clk 0:01:47.2]} 12...
g5 {[%clk 0:02:38.1]} 13. Bg3 {[%clk 0:01:47]} 13... Nc6 {[%clk 0:02:34.8]} 14.
h3 {[%clk 0:01:40.7]} 14... Na5 {[%clk 0:02:34.1]} 15. Qc2 {[%clk 0:01:40.3]}
15... Nxc4 {[%clk 0:02:34]} 16. Nxc4 {[%clk 0:01:41.2]} 16... Bd7 {[%clk
0:02:32]} 17. Nfd2 {[%clk 0:01:36.9]} 17... Rae8 {[%clk 0:02:22.9]} 18. a4
{[%clk 0:01:29.3]} 18... Kh8 {[%clk 0:02:21.3]} 19. a5 {[%clk 0:01:29]} 19...
Nh5 {[%clk 0:02:07.8]} 20. Bh2 {[%clk 0:01:28.1]} 20... e5 {[%clk 0:02:04.3]}
21. dxe5 {[%clk 0:01:23.6]} 21... dxe5 {[%clk 0:02:03.8]} 22. Nf3 {[%clk
0:01:22.2]} 22... Qc5 {[%clk 0:01:36.1]} 23. Qe2 {[%clk 0:00:59.6]} 23... Bb5
{[%clk 0:01:32.6]} 24. Nfd2 {[%clk 0:00:41.2]} 24... Nf6 {[%clk 0:01:14.9]} 25.
b4 {[%clk 0:00:40.3]} 25... Qd5 {[%clk 0:01:00.6]} 26. Rad1 {[%clk 0:00:29.8]}
26... f4 {[%clk 0:00:58.8]} 27. e4 {[%clk 0:00:26.9]} 27... Qe6 {[%clk
0:00:56.7]} 28. f3 {[%clk 0:00:25.8]} 28... h5 {[%clk 0:00:56.4]} 29. Kh1 {[%clk
0:00:25]} 29... Rg8 {[%clk 0:00:55.6]} 30. Bg1 {[%clk 0:00:24.2]} 30... Bf8
{[%clk 0:00:47.2]} 31. Bxa7 {[%clk 0:00:22.5]} 31... g4 {[%clk 0:00:46.1]} 32.
hxg4 {[%clk 0:00:18.9]} 32... hxg4 {[%clk 0:00:45.8]} 33. Bc5 {[%clk 0:00:13.3]}
33... Bxc5 {[%clk 0:00:42.3]} 34. bxc5 {[%clk 0:00:14.2]} 34... g3 {[%clk
0:00:39.5]} 35. Kg1 {[%clk 0:00:13.2]} 35... Rg7 {[%clk 0:00:26.8]} 36. Qd3
{[%clk 0:00:11.5]} 36... Nd7 {[%clk 0:00:17.2]} 37. Qd5 {[%clk 0:00:09.8]} 37...
Qe7 {[%clk 0:00:14.3]} 38. Nb3 {[%clk 0:00:08.2]} 38... Bc6 {[%clk 0:00:14]} 39.
Qd3 {[%clk 0:00:08.1]} 39... Nxc5 {[%clk 0:00:14.3]} 40. Qc2 {[%clk 0:00:06]}
40... Nxb3 {[%clk 0:00:13.6]} 41. Qxb3 {[%clk 0:00:06]} 41... Qc5+ {[%clk
0:00:14.2]} 42. Ne3 {[%clk 0:00:06.3]} 42... fxe3 {[%clk 0:00:12.7]} 43. Re2
{[%clk 0:00:07.2]} 43... Rh7 {[%clk 0:00:12.5]} 44. Qc2 {[%clk 0:00:05.5]} 44...
Bb5 {[%clk 0:00:12.1]} 45. Rd5 {[%clk 0:00:05.3]} 45... Qc4 {[%clk 0:00:10.9]}
46. Rxb5 {[%clk 0:00:03.5]} 46... Qxb5 {[%clk 0:00:10.3]} 47. c4 {[%clk
0:00:04.2]} 47... Qc5 {[%clk 0:00:09.8]} 48. Qd3 {[%clk 0:00:04.6]} 48... Qd6
{[%clk 0:00:07.1]} 49. Qxd6 {[%clk 0:00:03.9]} 49... cxd6 {[%clk 0:00:06.9]} 50.
Rxe3 {[%clk 0:00:04.8]} 50... Rc7 {[%clk 0:00:06.8]} 51. Rc3 {[%clk 0:00:03.4]}
51... Rc5 {[%clk 0:00:06.8]} 52. Kf1 {[%clk 0:00:04.3]} 52... Rec8 {[%clk
0:00:07.1]} 53. Rd3 {[%clk 0:00:04.6]} 53... Rxc4 {[%clk 0:00:07.5]} 54. Rxd6
{[%clk 0:00:05]} 54... Rc2 {[%clk 0:00:08]} 55. Ke1 {[%clk 0:00:05]} 55... Rf2
{[%clk 0:00:07.8]} 56. Rg6 {[%clk 0:00:05.9]} 56... Rc1# {[%clk 0:00:06.6]} 0-1

[Event "*** Titled Tuesday Blitz"]
[Site "Chess.com"]
[Date "2020.04.14"]
[Round "5"]
[White "2008king"]
[Black "Keks2017"]
[Result "0-1"]
[WhiteElo "2029"]
[BlackElo "2481"]
[TimeControl "180+1"]
[EndTime "10:51:50 PDT"]
[Termination "Keks2017 won by checkmate"]

1. e4 {[%clk 0:03:00.9]} 1... c5 {[%clk 0:02:58.5]} 2. Nf3 {[%clk 0:03:00.7]}
2... d6 {[%clk 0:02:58.6]} 3. d4 {[%clk 0:03:00.7]} 3... cxd4 {[%clk 0:02:58.6]}
4. Qxd4 {[%clk 0:03:01.6]} 4... a6 {[%clk 0:02:57.1]} 5. Be2 {[%clk 0:03:01]}
5... Nc6 {[%clk 0:02:56.9]} 6. Qe3 {[%clk 0:03:01.2]} 6... Nf6 {[%clk
0:02:56.9]} 7. c4 {[%clk 0:02:59.8]} 7... g6 {[%clk 0:02:56.8]} 8. Nc3 {[%clk
0:02:54.3]} 8... Bg7 {[%clk 0:02:56.7]} 9. O-O {[%clk 0:02:54.7]} 9... O-O
{[%clk 0:02:56.4]} 10. h3 {[%clk 0:02:55]} 10... b6 {[%clk 0:02:50.7]} 11. Rd1
{[%clk 0:02:51.8]} 11... Qc7 {[%clk 0:02:48.7]} 12. Rb1 {[%clk 0:02:48.4]} 12...
Bb7 {[%clk 0:02:48]} 13. b3 {[%clk 0:02:48.1]} 13... Rac8 {[%clk 0:02:43.8]} 14.
Bb2 {[%clk 0:02:47.6]} 14... e6 {[%clk 0:02:38.8]} 15. Rbc1 {[%clk 0:02:47.6]}
15... Nd7 {[%clk 0:02:29.2]} 16. a3 {[%clk 0:02:39.5]} 16... Qb8 {[%clk
0:02:23.3]} 17. b4 {[%clk 0:02:39.1]} 17... Rfd8 {[%clk 0:02:18.7]} 18. Na4
{[%clk 0:02:38.2]} 18... Qc7 {[%clk 0:02:14.8]} 19. Bxg7 {[%clk 0:02:38.1]}
19... Kxg7 {[%clk 0:02:14.9]} 20. c5 {[%clk 0:02:32.6]} 20... dxc5 {[%clk
0:02:10.2]} 21. bxc5 {[%clk 0:02:33.5]} 21... b5 {[%clk 0:02:10]} 22. Nb6 {[%clk
0:02:28.9]} 22... Nxb6 {[%clk 0:02:04.6]} 23. cxb6 {[%clk 0:02:29.8]} 23... Qe7
{[%clk 0:02:04.3]} 24. Rxd8 {[%clk 0:02:24.4]} 24... Rxd8 {[%clk 0:02:03.6]} 25.
Rxc6 {[%clk 0:02:22.6]} 25... Bxc6 {[%clk 0:02:02.7]} 26. Qc3+ {[%clk 0:02:23]}
26... f6 {[%clk 0:01:59.6]} 27. Qxc6 {[%clk 0:02:23]} 27... Rd6 {[%clk
0:01:57.2]} 28. Qc7 {[%clk 0:02:14.1]} 28... Rd7 {[%clk 0:01:54.3]} 29. Qc8
{[%clk 0:02:10.1]} 29... Rb7 {[%clk 0:01:37.9]} 30. Qc6 {[%clk 0:02:06.6]} 30...
Qd7 {[%clk 0:01:34.2]} 31. Qc5 {[%clk 0:01:49.7]} 31... Qd8 {[%clk 0:01:29.9]}
32. e5 {[%clk 0:01:44.2]} 32... f5 {[%clk 0:01:19.7]} 33. Nd4 {[%clk 0:01:42.8]}
33... Qxb6 {[%clk 0:01:13.2]} 34. Qxb6 {[%clk 0:01:39.4]} 34... Rxb6 {[%clk
0:01:12.9]} 35. Bd1 {[%clk 0:01:37.4]} 35... a5 {[%clk 0:01:03.3]} 36. Bb3
{[%clk 0:01:37]} 36... Kf7 {[%clk 0:01:03.4]} 37. f4 {[%clk 0:01:35.9]} 37...
Ke7 {[%clk 0:01:02.1]} 38. Kf2 {[%clk 0:01:35.7]} 38... Kd7 {[%clk 0:01:01.8]}
39. Ke3 {[%clk 0:01:36.1]} 39... Ke7 {[%clk 0:00:57.7]} 40. g3 {[%clk
0:01:35.2]} 40... Kd7 {[%clk 0:00:57.4]} 41. h4 {[%clk 0:01:34.7]} 41... Ke7
{[%clk 0:00:53.6]} 42. Nxe6 {[%clk 0:01:26.7]} 42... a4 {[%clk 0:00:43.9]} 43.
Bd5 {[%clk 0:01:18]} 43... b4 {[%clk 0:00:42.9]} 44. axb4 {[%clk 0:01:09.6]}
44... Rxb4 {[%clk 0:00:42.6]} 45. Nc5 {[%clk 0:01:09.4]} 45... a3 {[%clk
0:00:41.3]} 46. Nd3 {[%clk 0:01:06.8]} 46... Rb1 {[%clk 0:00:36.1]} 47. Ba2
{[%clk 0:01:01.8]} 47... Ra1 {[%clk 0:00:32]} 48. Nb4 {[%clk 0:01:01.4]} 48...
Rg1 {[%clk 0:00:31.6]} 49. Kf2 {[%clk 0:01:01.2]} 49... Rd1 {[%clk 0:00:28.6]}
50. Ke2 {[%clk 0:00:59.3]} 50... Rg1 {[%clk 0:00:27.2]} 51. Kf2 {[%clk
0:00:59.7]} 51... Rd1 {[%clk 0:00:27.1]} 52. Nd5+ {[%clk 0:00:55.6]} 52... Ke8
{[%clk 0:00:21.8]} 53. Ke3 {[%clk 0:00:51.6]} 53... Rg1 {[%clk 0:00:18.4]} 54.
Kf3 {[%clk 0:00:50.6]} 54... Rf1+ {[%clk 0:00:17.9]} 55. Ke2 {[%clk 0:00:50.5]}
55... Rg1 {[%clk 0:00:17.9]} 56. Kf2 {[%clk 0:00:51]} 56... Rd1 {[%clk
0:00:17.8]} 57. Nb4 {[%clk 0:00:36.1]} 57... Rd2+ {[%clk 0:00:16.3]} 58. Ke3
{[%clk 0:00:35.5]} 58... Rb2 {[%clk 0:00:16.2]} 59. Bg8 {[%clk 0:00:28.3]} 59...
Rxb4 {[%clk 0:00:15.7]} 60. Kd3 {[%clk 0:00:28.9]} 60... Rb2 {[%clk 0:00:15.6]}
61. Kc3 {[%clk 0:00:28.9]} 61... Rg2 {[%clk 0:00:15.2]} 62. Kb3 {[%clk
0:00:29.3]} 62... a2 {[%clk 0:00:14.9]} 63. Bxh7 {[%clk 0:00:28.4]} 63... a1=Q
{[%clk 0:00:14.8]} 64. Bxg6+ {[%clk 0:00:29.3]} 64... Ke7 {[%clk 0:00:12.4]} 65.
Bxf5 {[%clk 0:00:29.5]} 65... Qd4 {[%clk 0:00:12.4]} 66. g4 {[%clk 0:00:27.7]}
66... Rg3+ {[%clk 0:00:12.3]} 67. Kc2 {[%clk 0:00:28.3]} 67... Qf2+ {[%clk
0:00:12.1]} 68. Kd1 {[%clk 0:00:28.5]} 68... Rg1# {[%clk 0:00:12.1]} 0-1